[Event "Titled Tuesday Blitz September 27 Early 2022"]
[White "Weetik, Vjacheslav"]
[Black "Grandelius, Nils"]
[WhiteFideId "4153472"]
[BlackFideId "1710400"]
[WhiteElo "2469"]
[BlackElo "2617"]
[Result "1-0"]
[Round "08"]
[TimeControl "180+1"]
[Date "2022.09.27"]
[WhiteClock "0:00:08"]
[BlackClock "0:00:13"]

1. d4 {[%clk 0:02:59]}  d5 {[%clk 0:02:59]} 2. Bf4 {[%clk 0:02:58]}  e6 {[%clk 0:02:59]} 3. Nf3 {[%clk 0:02:57]}  Bd6 {[%clk 0:03:00]} 4. Bg3 {[%clk 0:02:56]}  Nf6 {[%clk 0:02:59]} 5. Nbd2 {[%clk 0:02:54]}  Ne4 {[%clk 0:02:47]} 6. Bh4 {[%clk 0:02:23]}  f6 {[%clk 0:02:44]} 7. Nxe4 {[%clk 0:02:17]}  dxe4 {[%clk 0:02:44]} 8. Nd2 {[%clk 0:02:17]}  g5 {[%clk 0:02:38]} 9. Bg3 {[%clk 0:02:15]}  Bxg3 {[%clk 0:02:31]} 10. hxg3 {[%clk 0:02:15]}  Qxd4 {[%clk 0:02:32]} 11. e3 {[%clk 0:02:15]}  Qxb2 {[%clk 0:02:31]} 12. Qh5+ {[%clk 0:02:14]}  Ke7 {[%clk 0:02:24]} 13. Rb1 {[%clk 0:02:11]}  Qxc2 {[%clk 0:02:19]} 14. Qh6 {[%clk 0:01:58]}  Rf8 {[%clk 0:02:06]} 15. Qxh7+ {[%clk 0:01:12]}  Kd8 {[%clk 0:01:00]} 16. Qg7 {[%clk 0:00:55]}  Nd7 {[%clk 0:01:00]} 17. Rh7 {[%clk 0:00:48]}  Re8 {[%clk 0:00:55]} 18. Rd1 {[%clk 0:00:38]}  c6 {[%clk 0:00:46]} 19. Nxe4 {[%clk 0:00:36]}  Kc7 {[%clk 0:00:22]} 20. Bd3 {[%clk 0:00:21]}  Qb2 {[%clk 0:00:18]} 21. Nxf6 {[%clk 0:00:18]}  Rd8 {[%clk 0:00:14]} 22. Ne8+ {[%clk 0:00:15]}  Rxe8 {[%clk 0:00:14]} 23. Qxb2 {[%clk 0:00:15]}  b6 {[%clk 0:00:14]} 24. Ba6 {[%clk 0:00:12]}  Rd8 {[%clk 0:00:13]} 25. Qe5# {[%clk 0:00:08]} 1-0


[Site "https://www.chess.com"]

[Event "Titled Tuesday Blitz September 27 Early 2022"]
[White "Winterberg, Lukas"]
[Black "Koziorowicz, Michal"]
[WhiteFideId "24622702"]
[BlackFideId "21809194"]
[WhiteElo "2349"]
[BlackElo "2220"]
[Result "0-1"]
[Round "08"]
[TimeControl "180+1"]
[Date "2022.09.27"]
[WhiteClock "0:00:11"]
[BlackClock "0:00:16"]

1. e4 {[%clk 0:03:00]}  g5 {[%clk 0:02:54]} 2. d4 {[%clk 0:02:58]}  h6 {[%clk 0:02:50]} 3. h4 {[%clk 0:02:57]}  gxh4 {[%clk 0:02:48]} 4. Nc3 {[%clk 0:02:55]}  Bg7 {[%clk 0:02:47]} 5. Nf3 {[%clk 0:02:53]}  c5 {[%clk 0:02:45]} 6. dxc5 {[%clk 0:02:51]}  Qa5 {[%clk 0:02:44]} 7. Bd2 {[%clk 0:02:44]}  Qxc5 {[%clk 0:02:42]} 8. Nd5 {[%clk 0:02:40]}  Kd8 {[%clk 0:01:35]} 9. Bb4 {[%clk 0:02:13]}  Qc6 {[%clk 0:01:33]} 10. Nd4 {[%clk 0:02:12]}  Qg6 {[%clk 0:01:31]} 11. Nf5 {[%clk 0:02:07]}  Nc6 {[%clk 0:01:25]} 12. Bc3 {[%clk 0:01:38]}  Bxc3+ {[%clk 0:01:22]} 13. Nxc3 {[%clk 0:01:36]}  d6 {[%clk 0:01:21]} 14. Nxh4 {[%clk 0:01:32]}  Qg7 {[%clk 0:01:21]} 15. Qd2 {[%clk 0:01:30]}  Be6 {[%clk 0:01:17]} 16. O-O-O {[%clk 0:01:30]}  Rc8 {[%clk 0:01:16]} 17. f4 {[%clk 0:01:29]}  Kc7 {[%clk 0:01:14]} 18. f5 {[%clk 0:01:08]}  Bd7 {[%clk 0:01:13]} 19. Nd5+ {[%clk 0:01:08]}  Kb8 {[%clk 0:01:12]} 20. Nf3 {[%clk 0:01:09]}  Nf6 {[%clk 0:01:05]} 21. Nxf6 {[%clk 0:00:49]}  Qxf6 {[%clk 0:01:06]} 22. Bb5 {[%clk 0:00:48]}  h5 {[%clk 0:00:50]} 23. Qg5 {[%clk 0:00:40]}  Qxg5+ {[%clk 0:00:40]} 24. Nxg5 {[%clk 0:00:41]}  Rcg8 {[%clk 0:00:40]} 25. Nh3 {[%clk 0:00:23]}  Rxg2 {[%clk 0:00:40]} 26. Nf4 {[%clk 0:00:24]}  Rg5 {[%clk 0:00:37]} 27. Rh4 {[%clk 0:00:18]}  Kc7 {[%clk 0:00:36]} 28. Rdh1 {[%clk 0:00:17]}  Ne5 {[%clk 0:00:29]} 29. Bxd7 {[%clk 0:00:13]}  Kxd7 {[%clk 0:00:29]} 30. Nxh5 {[%clk 0:00:12]}  Rhg8 {[%clk 0:00:17]} 31. b3 {[%clk 0:00:07]}  Rg4 {[%clk 0:00:18]} 32. Kb2 {[%clk 0:00:07]}  Rg2 {[%clk 0:00:17]} 33. Nf4 {[%clk 0:00:06]}  Rf2 {[%clk 0:00:17]} 34. R1h2 {[%clk 0:00:05]}  Rxh2 {[%clk 0:00:16]} 35. Rxh2 {[%clk 0:00:06]}  Rg4 {[%clk 0:00:16]} 36. Rf2 {[%clk 0:00:07]}  Rh4 {[%clk 0:00:15]} 37. Kc3 {[%clk 0:00:07]}  Kc6 {[%clk 0:00:14]} 38. Kd4 {[%clk 0:00:07]}  Nd7 {[%clk 0:00:14]} 39. Ke3 {[%clk 0:00:07]}  Nc5 {[%clk 0:00:13]} 40. b4 {[%clk 0:00:05]}  Nd7 {[%clk 0:00:12]} 41. Nd5 {[%clk 0:00:05]}  e6 {[%clk 0:00:12]} 42. fxe6 {[%clk 0:00:06]}  fxe6 {[%clk 0:00:12]} 43. Nf4 {[%clk 0:00:05]}  e5 {[%clk 0:00:10]} 44. Nd5 {[%clk 0:00:05]}  Rh3+ {[%clk 0:00:09]} 45. Rf3 {[%clk 0:00:05]}  Rh2 {[%clk 0:00:09]} 46. c4 {[%clk 0:00:05]}  Rxa2 {[%clk 0:00:09]} 47. Rf8 {[%clk 0:00:05]}  Ra3+ {[%clk 0:00:09]} 48. Kd2 {[%clk 0:00:05]}  Nb6 {[%clk 0:00:09]} 49. Nxb6 {[%clk 0:00:03]}  Kxb6 {[%clk 0:00:09]} 50. Rd8 {[%clk 0:00:03]}  Kc7 {[%clk 0:00:09]} 51. Ra8 {[%clk 0:00:03]}  a6 {[%clk 0:00:09]} 52. Re8 {[%clk 0:00:03]}  Rb3 {[%clk 0:00:09]} 53. b5 {[%clk 0:00:03]}  axb5 {[%clk 0:00:09]} 54. cxb5 {[%clk 0:00:04]}  Rxb5 {[%clk 0:00:10]} 55. Kd3 {[%clk 0:00:05]}  Rb4 {[%clk 0:00:10]} 56. Rg8 {[%clk 0:00:06]}  Rd4+ {[%clk 0:00:10]} 57. Ke3 {[%clk 0:00:05]}  b5 {[%clk 0:00:11]} 58. Rg7+ {[%clk 0:00:06]}  Kb6 {[%clk 0:00:11]} 59. Rg8 {[%clk 0:00:07]}  Kc5 {[%clk 0:00:11]} 60. Rb8 {[%clk 0:00:08]}  Kb4 {[%clk 0:00:12]} 61. Rb7 {[%clk 0:00:08]}  Ka4 {[%clk 0:00:12]} 62. Ra7+ {[%clk 0:00:09]}  Kb3 {[%clk 0:00:12]} 63. Rb7 {[%clk 0:00:09]}  b4 {[%clk 0:00:13]} 64. Rb6 {[%clk 0:00:10]}  Kb2 {[%clk 0:00:13]} 65. Rb5 {[%clk 0:00:09]}  b3 {[%clk 0:00:14]} 66. Rb8 {[%clk 0:00:09]}  Kc2 {[%clk 0:00:14]} 67. Rc8+ {[%clk 0:00:09]}  Kb1 {[%clk 0:00:14]} 68. Rb8 {[%clk 0:00:10]}  b2 {[%clk 0:00:15]} 69. Rb7 {[%clk 0:00:11]}  Kc2 {[%clk 0:00:15]} 70. Rc7+ {[%clk 0:00:11]}  Kb3 {[%clk 0:00:15]} 71. Rb7+ {[%clk 0:00:11]}  Rb4 {[%clk 0:00:16]} 0-1


[Site "https://www.chess.com"]

[Event "Titled Tuesday Blitz September 27 Early 2022"]
[White "Zelbel, Patrick"]
[Black "Suleymanli, Suleyman"]
[WhiteFideId "24624322"]
[BlackFideId "13416375"]
[WhiteElo "2474"]
[BlackElo "1652"]
[Result "1-0"]
[Round "08"]
[TimeControl "180+1"]
[Date "2022.09.27"]
[WhiteClock "0:00:17"]
[BlackClock "0:00:04"]

1. e4 {[%clk 0:03:00]}  e6 {[%clk 0:03:00]} 2. d3 {[%clk 0:02:58]}  d5 {[%clk 0:02:59]} 3. Qe2 {[%clk 0:02:59]}  Ne7 {[%clk 0:02:57]} 4. g3 {[%clk 0:02:56]}  c5 {[%clk 0:02:57]} 5. Bg2 {[%clk 0:02:56]}  Nbc6 {[%clk 0:02:57]} 6. Nf3 {[%clk 0:02:56]}  g6 {[%clk 0:02:57]} 7. O-O {[%clk 0:02:49]}  Bg7 {[%clk 0:02:56]} 8. h4 {[%clk 0:02:39]}  O-O {[%clk 0:02:53]} 9. Re1 {[%clk 0:02:29]}  b5 {[%clk 0:02:47]} 10. e5 {[%clk 0:02:26]}  Qc7 {[%clk 0:02:42]} 11. Bg5 {[%clk 0:02:23]}  Nf5 {[%clk 0:02:39]} 12. c3 {[%clk 0:02:20]}  b4 {[%clk 0:02:39]} 13. Nbd2 {[%clk 0:02:19]}  bxc3 {[%clk 0:02:38]} 14. bxc3 {[%clk 0:02:19]}  Ba6 {[%clk 0:02:39]} 15. Nf1 {[%clk 0:02:15]}  Rfe8 {[%clk 0:02:30]} 16. g4 {[%clk 0:02:15]}  Nfe7 {[%clk 0:02:27]} 17. Ng3 {[%clk 0:02:16]}  Rab8 {[%clk 0:02:19]} 18. Bf6 {[%clk 0:02:15]}  Kf8 {[%clk 0:02:12]} 19. h5 {[%clk 0:02:13]}  Ng8 {[%clk 0:02:12]} 20. Bg5 {[%clk 0:02:00]}  Nxe5 {[%clk 0:01:59]} 21. Nxe5 {[%clk 0:02:01]}  Bxe5 {[%clk 0:01:59]} 22. Qxe5 {[%clk 0:02:02]}  Qxe5 {[%clk 0:01:59]} 23. Rxe5 {[%clk 0:02:03]}  f6 {[%clk 0:02:00]} 24. Bxf6 {[%clk 0:01:55]}  Nxf6 {[%clk 0:02:01]} 25. g5 {[%clk 0:01:56]}  Nd7 {[%clk 0:02:00]} 26. Re3 {[%clk 0:01:54]}  Kg8 {[%clk 0:01:55]} 27. d4 {[%clk 0:01:52]}  cxd4 {[%clk 0:01:54]} 28. cxd4 {[%clk 0:01:52]}  Bc4 {[%clk 0:01:45]} 29. Rae1 {[%clk 0:01:48]}  Kf7 {[%clk 0:01:42]} 30. Bh3 {[%clk 0:01:44]}  Rb6 {[%clk 0:01:41]} 31. a3 {[%clk 0:01:37]}  a5 {[%clk 0:01:40]} 32. f4 {[%clk 0:01:35]}  a4 {[%clk 0:01:38]} 33. f5 {[%clk 0:01:35]}  gxf5 {[%clk 0:01:36]} 34. Nxf5 {[%clk 0:01:35]}  Nf8 {[%clk 0:01:19]} 35. Nh6+ {[%clk 0:01:35]}  Ke7 {[%clk 0:01:16]} 36. Ng8+ {[%clk 0:01:23]}  Kd6 {[%clk 0:01:13]} 37. Nf6 {[%clk 0:01:23]}  Re7 {[%clk 0:01:11]} 38. h6 {[%clk 0:01:06]}  Rb3 {[%clk 0:01:09]} 39. Bg4 {[%clk 0:01:05]}  Rxe3 {[%clk 0:01:01]} 40. Rxe3 {[%clk 0:01:06]}  Rb7 {[%clk 0:00:42]} 41. Kf2 {[%clk 0:01:02]}  Rb2+ {[%clk 0:00:42]} 42. Kg3 {[%clk 0:01:02]}  Rb1 {[%clk 0:00:42]} 43. Kf2 {[%clk 0:00:52]}  Rb2+ {[%clk 0:00:38]} 44. Kg3 {[%clk 0:00:52]}  Rb3 {[%clk 0:00:35]} 45. Kf3 {[%clk 0:00:46]}  Rb1 {[%clk 0:00:22]} 46. Nxh7 {[%clk 0:00:43]}  Rf1+ {[%clk 0:00:08]} 47. Kg2 {[%clk 0:00:38]}  Nxh7 {[%clk 0:00:07]} 48. Rxe6+ {[%clk 0:00:35]}  Kd7 {[%clk 0:00:08]} 49. Ra6+ {[%clk 0:00:30]}  Ke8 {[%clk 0:00:05]} 50. Ra8+ {[%clk 0:00:16]}  Kf7 {[%clk 0:00:04]} 51. Ra7+ {[%clk 0:00:17]}  Kg6 {[%clk 0:00:04]} 52. Rg7# {[%clk 0:00:17]} 1-0


[Site "https://www.chess.com"]

[Event "Titled Tuesday Blitz September 27 Early 2022"]
[White "Zilleruelo Irizarry, Diego"]
[Black "Barash, Anton"]
[WhiteFideId "3101460"]
[BlackFideId "30935229"]
[WhiteElo "1998"]
[BlackElo "2268"]
[Result "0-1"]
[Round "08"]
[TimeControl "180+1"]
[Date "2022.09.27"]
[WhiteClock "0:00:15"]
[BlackClock "0:00:09"]

1. e4 {[%clk 0:03:00]}  e6 {[%clk 0:03:00]} 2. d4 {[%clk 0:03:00]}  d5 {[%clk 0:03:00]} 3. Nd2 {[%clk 0:03:01]}  Nc6 {[%clk 0:03:01]} 4. Ngf3 {[%clk 0:03:00]}  Nf6 {[%clk 0:03:01]} 5. e5 {[%clk 0:03:00]}  Nd7 {[%clk 0:03:01]} 6. Bb5 {[%clk 0:03:00]}  a6 {[%clk 0:03:01]} 7. Bxc6 {[%clk 0:02:58]}  bxc6 {[%clk 0:03:02]} 8. O-O {[%clk 0:02:57]}  c5 {[%clk 0:03:02]} 9. dxc5 {[%clk 0:02:57]}  Bxc5 {[%clk 0:02:59]} 10. Nb3 {[%clk 0:02:57]}  Ba7 {[%clk 0:02:54]} 11. Nbd4 {[%clk 0:02:52]}  Bb7 {[%clk 0:02:50]} 12. Re1 {[%clk 0:02:41]}  c5 {[%clk 0:02:47]} 13. Ne2 {[%clk 0:02:37]}  Qb6 {[%clk 0:02:32]} 14. Ng3 {[%clk 0:02:35]}  Rb8 {[%clk 0:02:20]} 15. c3 {[%clk 0:02:33]}  c4 {[%clk 0:02:16]} 16. Re2 {[%clk 0:02:28]}  Nc5 {[%clk 0:02:15]} 17. Be3 {[%clk 0:02:28]}  Qc7 {[%clk 0:02:10]} 18. Ne1 {[%clk 0:02:16]}  Ba8 {[%clk 0:02:05]} 19. Qc2 {[%clk 0:02:02]}  O-O {[%clk 0:01:35]} 20. Rd1 {[%clk 0:02:02]}  Rfd8 {[%clk 0:01:33]} 21. Bd4 {[%clk 0:01:59]}  Rb5 {[%clk 0:01:22]} 22. f4 {[%clk 0:01:41]}  Rdb8 {[%clk 0:01:19]} 23. Qc1 {[%clk 0:01:34]}  Qb7 {[%clk 0:01:02]} 24. f5 {[%clk 0:01:13]}  exf5 {[%clk 0:00:32]} 25. Nxf5 {[%clk 0:01:10]}  Rxb2 {[%clk 0:00:27]} 26. Rxb2 {[%clk 0:01:03]}  Qxb2 {[%clk 0:00:27]} 27. Qg5 {[%clk 0:01:04]}  Ne6 {[%clk 0:00:25]} 28. Qe7 {[%clk 0:00:49]}  Bxd4+ {[%clk 0:00:19]} 29. cxd4 {[%clk 0:00:47]}  Qe2 {[%clk 0:00:16]} 30. Rb1 {[%clk 0:00:41]}  Rc8 {[%clk 0:00:08]} 31. Nf3 {[%clk 0:00:30]}  Qc2 {[%clk 0:00:04]} 32. Rb6 {[%clk 0:00:15]}  Qxf5 {[%clk 0:00:04]} 33. Rxa6 {[%clk 0:00:14]}  Bc6 {[%clk 0:00:04]} 34. Rxc6 {[%clk 0:00:13]}  Rxc6 {[%clk 0:00:04]} 35. Qe8+ {[%clk 0:00:14]}  Nf8 {[%clk 0:00:04]} 36. Qxc6 {[%clk 0:00:15]}  Qb1+ {[%clk 0:00:04]} 37. Kf2 {[%clk 0:00:14]}  Qxa2+ {[%clk 0:00:04]} 38. Kg3 {[%clk 0:00:15]}  Qb2 {[%clk 0:00:03]} 39. Qxd5 {[%clk 0:00:15]}  c3 {[%clk 0:00:03]} 40. Ne1 {[%clk 0:00:12]}  c2 {[%clk 0:00:03]} 41. Nxc2 {[%clk 0:00:12]}  Qxc2 {[%clk 0:00:03]} 42. Qf3 {[%clk 0:00:12]}  Qc4 {[%clk 0:00:02]} 43. Qe4 {[%clk 0:00:11]}  Nd7 {[%clk 0:00:02]} 44. Qa8+ {[%clk 0:00:11]}  Nf8 {[%clk 0:00:02]} 45. Qe4 {[%clk 0:00:12]}  g6 {[%clk 0:00:02]} 46. Kf4 {[%clk 0:00:11]}  Ne6+ {[%clk 0:00:03]} 47. Ke3 {[%clk 0:00:12]}  Qc3+ {[%clk 0:00:03]} 48. Ke2 {[%clk 0:00:12]}  Qxd4 {[%clk 0:00:03]} 49. Qa8+ {[%clk 0:00:13]}  Kg7 {[%clk 0:00:04]} 50. Qa3 {[%clk 0:00:13]}  Qxe5+ {[%clk 0:00:04]} 51. Kf2 {[%clk 0:00:13]}  Qf4+ {[%clk 0:00:04]} 52. Kg1 {[%clk 0:00:13]}  Qd4+ {[%clk 0:00:03]} 53. Kf1 {[%clk 0:00:13]}  h5 {[%clk 0:00:04]} 54. h3 {[%clk 0:00:13]}  Qc4+ {[%clk 0:00:03]} 55. Kf2 {[%clk 0:00:11]}  Qd4+ {[%clk 0:00:04]} 56. Kf1 {[%clk 0:00:12]}  Qd5 {[%clk 0:00:05]} 57. Qe7 {[%clk 0:00:12]}  Qc5 {[%clk 0:00:05]} 58. Qd7 {[%clk 0:00:11]}  Qc4+ {[%clk 0:00:05]} 59. Kf2 {[%clk 0:00:11]}  Qc2+ {[%clk 0:00:05]} 60. Kf3 {[%clk 0:00:11]}  Ng5+ {[%clk 0:00:05]} 61. Kg3 {[%clk 0:00:11]}  Ne4+ {[%clk 0:00:05]} 62. Kf4 {[%clk 0:00:11]}  Qd2+ {[%clk 0:00:04]} 63. Qxd2 {[%clk 0:00:10]}  Nxd2 {[%clk 0:00:05]} 64. Ke3 {[%clk 0:00:11]}  Nb3 {[%clk 0:00:05]} 65. Kf4 {[%clk 0:00:12]}  Nc5 {[%clk 0:00:06]} 66. g4 {[%clk 0:00:13]}  hxg4 {[%clk 0:00:06]} 67. hxg4 {[%clk 0:00:13]}  Kf6 {[%clk 0:00:07]} 68. g5+ {[%clk 0:00:14]}  Ke6 {[%clk 0:00:07]} 69. Kg4 {[%clk 0:00:15]}  Ke5 {[%clk 0:00:07]} 70. Kh4 {[%clk 0:00:15]}  Kf5 {[%clk 0:00:08]} 71. Kg3 {[%clk 0:00:15]}  Kxg5 {[%clk 0:00:09]} 0-1


[Site "https://www.chess.com"]

[Event "Titled Tuesday Blitz September 27 Early 2022"]
[White "Acosta Villarroel, Lorner Jesus"]
[Black "Baches Garcia, Guillermo"]
[WhiteFideId "3906337"]
[BlackFideId "2209764"]
[WhiteElo "2325"]
[BlackElo "2402"]
[Result "1-0"]
[Round "09"]
[TimeControl "180+1"]
[Date "2022.09.27"]
[WhiteClock "0:00:09"]
[BlackClock "0:00:19"]

1. d4 {[%clk 0:03:00]}  Nf6 {[%clk 0:02:59]} 2. c4 {[%clk 0:02:59]}  e6 {[%clk 0:03:00]} 3. Nc3 {[%clk 0:02:59]}  d5 {[%clk 0:03:00]} 4. Nf3 {[%clk 0:02:59]}  c5 {[%clk 0:03:00]} 5. e3 {[%clk 0:02:55]}  a6 {[%clk 0:02:59]} 6. Bd3 {[%clk 0:02:56]}  dxc4 {[%clk 0:02:57]} 7. Bxc4 {[%clk 0:02:56]}  b5 {[%clk 0:02:56]} 8. Bb3 {[%clk 0:02:57]}  Bb7 {[%clk 0:02:55]} 9. O-O {[%clk 0:02:57]}  Nbd7 {[%clk 0:02:49]} 10. Qe2 {[%clk 0:02:57]}  Bd6 {[%clk 0:02:45]} 11. Rd1 {[%clk 0:02:56]}  c4 {[%clk 0:02:33]} 12. Bc2 {[%clk 0:02:53]}  Qe7 {[%clk 0:02:28]} 13. e4 {[%clk 0:02:49]}  e5 {[%clk 0:02:27]} 14. d5 {[%clk 0:02:32]}  O-O {[%clk 0:02:23]} 15. Nh4 {[%clk 0:02:32]}  g6 {[%clk 0:02:19]} 16. Bh6 {[%clk 0:02:32]}  Rfe8 {[%clk 0:02:16]} 17. h3 {[%clk 0:02:06]}  Nh5 {[%clk 0:02:08]} 18. g3 {[%clk 0:02:01]}  Nf4 {[%clk 0:01:54]} 19. Qf1 {[%clk 0:01:30]}  Nh5 {[%clk 0:01:40]} 20. Qe2 {[%clk 0:01:29]}  Qf6 {[%clk 0:01:25]} 21. Nf5 {[%clk 0:01:14]}  Bc5 {[%clk 0:01:14]} 22. Kh2 {[%clk 0:00:54]}  Rac8 {[%clk 0:00:47]} 23. d6 {[%clk 0:00:33]}  Re6 {[%clk 0:00:38]} 24. Qg4 {[%clk 0:00:20]}  Bxd6 {[%clk 0:00:33]} 25. Bg5 {[%clk 0:00:15]}  gxf5 {[%clk 0:00:28]} 26. exf5 {[%clk 0:00:13]}  Qg7 {[%clk 0:00:21]} 27. fxe6 {[%clk 0:00:13]}  Ndf6 {[%clk 0:00:20]} 28. Bxf6 {[%clk 0:00:12]}  Nxf6 {[%clk 0:00:17]} 29. Qxg7+ {[%clk 0:00:11]}  Kxg7 {[%clk 0:00:18]} 30. Rxd6 {[%clk 0:00:11]}  fxe6 {[%clk 0:00:18]} 31. Rad1 {[%clk 0:00:10]}  Rf8 {[%clk 0:00:18]} 32. Rxe6 {[%clk 0:00:09]}  Ng4+ {[%clk 0:00:18]} 33. hxg4 {[%clk 0:00:09]}  Rxf2+ {[%clk 0:00:18]} 34. Kh3 {[%clk 0:00:09]}  Rxc2 {[%clk 0:00:19]} 35. Rd7+ {[%clk 0:00:09]} 1-0


[Site "https://www.chess.com"]

[Event "Titled Tuesday Blitz September 27 Early 2022"]
[White "Agasarov, Benik"]
[Black "Tari, Aryan"]
[WhiteFideId "13314823"]
[BlackFideId "1510045"]
[WhiteElo "2152"]
[BlackElo "2612"]
[Result "1/2-1/2"]
[Round "09"]
[TimeControl "180+1"]
[Date "2022.09.27"]
[WhiteClock "0:00:16"]
[BlackClock "0:00:08"]

1. e4 {[%clk 0:03:00]}  c6 {[%clk 0:02:56]} 2. d4 {[%clk 0:02:56]}  d5 {[%clk 0:02:57]} 3. e5 {[%clk 0:02:48]}  Bf5 {[%clk 0:02:57]} 4. Nf3 {[%clk 0:02:48]}  e6 {[%clk 0:02:55]} 5. Be2 {[%clk 0:02:49]}  Ne7 {[%clk 0:02:56]} 6. O-O {[%clk 0:02:44]}  c5 {[%clk 0:02:56]} 7. c4 {[%clk 0:02:43]}  Nbc6 {[%clk 0:02:56]} 8. dxc5 {[%clk 0:02:29]}  d4 {[%clk 0:02:57]} 9. Qa4 {[%clk 0:02:29]}  Ng6 {[%clk 0:02:50]} 10. Rd1 {[%clk 0:02:12]}  d3 {[%clk 0:02:37]} 11. Be3 {[%clk 0:02:09]}  Qd7 {[%clk 0:02:33]} 12. Nc3 {[%clk 0:01:10]}  Ngxe5 {[%clk 0:02:31]} 13. Nxe5 {[%clk 0:01:09]}  Nxe5 {[%clk 0:02:32]} 14. Qxd7+ {[%clk 0:01:09]}  Kxd7 {[%clk 0:02:30]} 15. Bf4 {[%clk 0:01:05]}  Nxc4 {[%clk 0:02:15]} 16. Bxd3 {[%clk 0:01:05]}  Bxd3 {[%clk 0:02:08]} 17. Rxd3+ {[%clk 0:01:05]}  Kc6 {[%clk 0:02:08]} 18. b4 {[%clk 0:01:05]}  Be7 {[%clk 0:01:57]} 19. Rd4 {[%clk 0:00:55]}  Na3 {[%clk 0:01:49]} 20. Rad1 {[%clk 0:00:44]}  Rhd8 {[%clk 0:01:45]} 21. Bd6 {[%clk 0:00:28]}  Bf6 {[%clk 0:01:41]} 22. R4d3 {[%clk 0:00:26]}  Bxc3 {[%clk 0:01:27]} 23. Rxc3 {[%clk 0:00:27]}  Nb5 {[%clk 0:01:28]} 24. Rcd3 {[%clk 0:00:28]}  b6 {[%clk 0:01:04]} 25. a4 {[%clk 0:00:28]}  Nxd6 {[%clk 0:01:04]} 26. cxd6 {[%clk 0:00:23]}  Kd7 {[%clk 0:01:00]} 27. Rg3 {[%clk 0:00:21]}  g6 {[%clk 0:00:58]} 28. Rh3 {[%clk 0:00:22]}  h5 {[%clk 0:00:57]} 29. Rf3 {[%clk 0:00:22]}  Rf8 {[%clk 0:00:36]} 30. h4 {[%clk 0:00:18]}  Rac8 {[%clk 0:00:36]} 31. a5 {[%clk 0:00:18]}  bxa5 {[%clk 0:00:28]} 32. Ra3 {[%clk 0:00:18]}  Rc6 {[%clk 0:00:11]} 33. Rxa5 {[%clk 0:00:18]}  Ra8 {[%clk 0:00:12]} 34. Rda1 {[%clk 0:00:15]}  Kxd6 {[%clk 0:00:09]} 35. Rxa7 {[%clk 0:00:15]}  Rxa7 {[%clk 0:00:09]} 36. Rxa7 {[%clk 0:00:16]}  f5 {[%clk 0:00:06]} 37. Rg7 {[%clk 0:00:16]}  Rc1+ {[%clk 0:00:06]} 38. Kh2 {[%clk 0:00:16]}  Rc4 {[%clk 0:00:06]} 39. g3 {[%clk 0:00:16]}  Rxb4 {[%clk 0:00:05]} 40. Rxg6 {[%clk 0:00:17]}  f4 {[%clk 0:00:05]} 41. gxf4 {[%clk 0:00:17]}  Rxf4 {[%clk 0:00:05]} 42. Kg3 {[%clk 0:00:17]}  Rf5 {[%clk 0:00:06]} 43. Rg5 {[%clk 0:00:18]}  Ke5 {[%clk 0:00:06]} 44. Rxf5+ {[%clk 0:00:16]}  exf5 {[%clk 0:00:06]} 45. Kf3 {[%clk 0:00:13]}  f4 {[%clk 0:00:06]} 46. Ke2 {[%clk 0:00:13]}  Ke4 {[%clk 0:00:06]} 47. f3+ {[%clk 0:00:13]}  Kd4 {[%clk 0:00:06]} 48. Kd2 {[%clk 0:00:14]}  Kc4 {[%clk 0:00:07]} 49. Kc2 {[%clk 0:00:14]}  Kd4 {[%clk 0:00:07]} 50. Kd2 {[%clk 0:00:15]}  Kc4 {[%clk 0:00:08]} 51. Kc2 {[%clk 0:00:15]}  Kd4 {[%clk 0:00:08]} 52. Kd2 {[%clk 0:00:16]} 1/2-1/2


[Site "https://www.chess.com"]

[Event "Titled Tuesday Blitz September 27 Early 2022"]
[White "Aguilar, Juan"]
[Black "Fiorito, Francisco"]
[WhiteFideId "3800091"]
[BlackFideId "180165"]
[WhiteElo "2346"]
[BlackElo "1787"]
[Result "1-0"]
[Round "09"]
[TimeControl "180+1"]
[Date "2022.09.27"]
[WhiteClock "0:01:39"]
[BlackClock "0:01:40"]

1. d4 {[%clk 0:03:00]}  d5 {[%clk 0:02:58]} 2. c4 {[%clk 0:03:00]}  dxc4 {[%clk 0:02:57]} 3. e4 {[%clk 0:02:59]}  e5 {[%clk 0:02:57]} 4. Nf3 {[%clk 0:02:59]}  exd4 {[%clk 0:02:55]} 5. Bxc4 {[%clk 0:03:00]}  Bb4+ {[%clk 0:02:55]} 6. Bd2 {[%clk 0:02:56]}  Bxd2+ {[%clk 0:02:54]} 7. Nbxd2 {[%clk 0:02:54]}  Nc6 {[%clk 0:02:51]} 8. O-O {[%clk 0:02:53]}  Nf6 {[%clk 0:02:49]} 9. e5 {[%clk 0:02:48]}  Nd5 {[%clk 0:02:49]} 10. Nb3 {[%clk 0:02:36]}  O-O {[%clk 0:02:41]} 11. Nbxd4 {[%clk 0:02:32]}  Nxd4 {[%clk 0:02:38]} 12. Qxd4 {[%clk 0:02:29]}  Be6 {[%clk 0:02:33]} 13. Rfd1 {[%clk 0:02:24]}  c6 {[%clk 0:02:33]} 14. Qe4 {[%clk 0:02:07]}  Qe7 {[%clk 0:02:31]} 15. h4 {[%clk 0:02:04]}  h6 {[%clk 0:02:30]} 16. Bd3 {[%clk 0:02:00]}  g6 {[%clk 0:02:26]} 17. h5 {[%clk 0:01:56]}  Bf5 {[%clk 0:01:46]} 18. Qd4 {[%clk 0:01:51]}  Bxd3 {[%clk 0:01:40]} 19. Rxd3 {[%clk 0:01:47]}  g5 {[%clk 0:01:40]} 20. Qe4 {[%clk 0:01:39]} 1-0


[Site "https://www.chess.com"]

[Event "Titled Tuesday Blitz September 27 Early 2022"]
[White "Amgalantengis, Enkh-Amgalan"]
[Black "Forgacs, Attila Jr."]
[WhiteFideId "4903536"]
[BlackFideId "773654"]
[WhiteElo "1719"]
[BlackElo "2062"]
[Result "1-0"]
[Round "09"]
[TimeControl "180+1"]
[Date "2022.09.27"]
[WhiteClock "0:01:52"]
[BlackClock "0:00:50"]

1. d4 {[%clk 0:02:48]}  Nf6 {[%clk 0:02:59]} 2. Nf3 {[%clk 0:02:47]}  g6 {[%clk 0:03:00]} 3. Nc3 {[%clk 0:02:47]}  Bg7 {[%clk 0:03:01]} 4. e4 {[%clk 0:02:46]}  d6 {[%clk 0:02:58]} 5. Be2 {[%clk 0:02:46]}  O-O {[%clk 0:02:58]} 6. h3 {[%clk 0:02:46]}  c5 {[%clk 0:02:59]} 7. O-O {[%clk 0:02:43]}  cxd4 {[%clk 0:02:59]} 8. Nxd4 {[%clk 0:02:44]}  Nc6 {[%clk 0:02:59]} 9. Nb3 {[%clk 0:02:44]}  Be6 {[%clk 0:02:55]} 10. Re1 {[%clk 0:02:45]}  Rc8 {[%clk 0:02:53]} 11. Bg5 {[%clk 0:02:45]}  h6 {[%clk 0:02:53]} 12. Bh4 {[%clk 0:02:44]}  Ne5 {[%clk 0:02:43]} 13. Bf1 {[%clk 0:02:44]}  Nc4 {[%clk 0:02:42]} 14. Bxc4 {[%clk 0:02:43]}  Bxc4 {[%clk 0:02:39]} 15. Qd2 {[%clk 0:02:33]}  Kh7 {[%clk 0:02:31]} 16. Rad1 {[%clk 0:02:31]}  Qb6 {[%clk 0:02:29]} 17. Nd5 {[%clk 0:02:30]}  Nxd5 {[%clk 0:02:24]} 18. exd5 {[%clk 0:02:30]}  g5 {[%clk 0:02:07]} 19. Bg3 {[%clk 0:02:27]}  Rc7 {[%clk 0:01:53]} 20. Na5 {[%clk 0:02:01]}  Qxb2 {[%clk 0:01:28]} 21. Nxc4 {[%clk 0:02:01]}  Rxc4 {[%clk 0:01:28]} 22. Qd3+ {[%clk 0:02:01]}  Kg8 {[%clk 0:01:20]} 23. Qxc4 {[%clk 0:02:01]}  b5 {[%clk 0:01:14]} 24. Qb3 {[%clk 0:01:59]}  Qf6 {[%clk 0:01:11]} 25. Qxb5 {[%clk 0:01:59]}  Rc8 {[%clk 0:01:09]} 26. c4 {[%clk 0:01:59]}  Rc5 {[%clk 0:01:08]} 27. Qe8+ {[%clk 0:01:58]}  Kh7 {[%clk 0:01:07]} 28. Qxe7 {[%clk 0:01:58]}  Qb2 {[%clk 0:00:59]} 29. Qe4+ {[%clk 0:01:57]}  Kg8 {[%clk 0:00:58]} 30. Bxd6 {[%clk 0:01:56]}  Ra5 {[%clk 0:00:58]} 31. Qe8+ {[%clk 0:01:53]}  Kh7 {[%clk 0:00:58]} 32. Qxf7 {[%clk 0:01:53]}  Rxa2 {[%clk 0:00:57]} 33. Be5 {[%clk 0:01:53]}  Qxf2+ {[%clk 0:00:50]} 34. Qxf2 {[%clk 0:01:52]} 1-0


[Site "https://www.chess.com"]